bitfinex/quotes_SOLUSD_20250326
["timestamp","ask_amount","ask_price","bid_price","bid_amount"]
[1743009766464,88.36,138.81,138.79,23.72211478]
[1743009766665,82.0,138.84,138.8,42.37176364]
[1743009766979,82.0,138.84,138.83,23.72211478]
[1743009768991,88.36,138.86,138.83,42.37176364]
[1743009769592,82.0,138.86,138.83,42.37176364]
[1743009770478,82.0,138.86,138.82,23.72211478]
[1743009770673,105.72211478,138.86,138.81,23.72211478]
[1743009771086,82.0,138.86,138.82,23.72211478]
[1743009771284,88.34,138.86,138.82,23.72211478]
[1743009773286,88.34,138.86,138.83,23.72211478]
[1743009773891,88.34,138.86,138.82,23.72211478]
[1743009774076,82.0,138.85,138.82,23.72211478]
[1743009774691,82.0,138.85,138.83,23.72211478]
[1743009774897,82.0,138.85,138.84,23.72211478]
[1743009776293,82.0,138.87,138.84,42.37176364]
[1743009776493,82.0,138.87,138.86,23.72211478]
[1743009777894,82.0,138.87,138.85,18.64964886]
[1743009778075,82.0,138.87,138.86,23.72211478]
[1743009780402,82.0,138.87,138.85,23.72211478]
[1743009780798,82.0,138.87,138.86,23.72211478]
[1743009782283,82.0,138.87,138.85,23.72211478]
[1743009782485,82.0,138.87,138.86,23.72211478]
[1743009782679,82.0,138.87,138.8,1.5957]
[1743009782884,105.72211478,138.86,138.81,42.37176364]
[1743009783893,82.0,138.85,138.81,42.37176364]
[1743009784100,105.72211478,138.85,138.81,18.64964886]
[1743009784328,6.32,138.84,138.81,42.37176364]
[1743009786579,82.0,138.85,138.83,25.33211478]
[1743009786783,0.063,138.87,138.86,38.64964886]
[1743009786987,0.063,138.87,138.86,59.96486364]
[1743009787484,0.063,138.87,138.86,42.37176364]
[1743009788094,0.063,138.87,138.86,18.64964886]
[1743009788291,0.063,138.87,138.85,23.72211478]
[1743009788491,0.063,138.87,138.86,23.72211478]
[1743009788690,0.063,138.87,138.86,42.37176364]
[1743009788899,0.063,138.93,138.86,66.23603999]
[1743009788900,82.0,138.92,138.86,66.23603999]
[1743009789104,6.36,138.91,138.9,18.64964886]
[1743009790233,0.063,138.93,138.9,42.37176364]
[1743009790529,0.063,138.93,138.9,18.64964886]
[1743009790731,82.0,138.92,138.84,18.79181043]
[1743009790907,82.0,138.91,138.87,42.37176364]
[1743009791099,105.72211478,138.9,138.85,23.72211478]
[1743009791298,30.08211478,138.89,138.84,42.37176364]
[1743009791494,82.0,138.88,138.84,42.37176364]
[1743009791710,82.0,138.88,138.86,23.72211478]
[1743009791905,82.0,138.88,138.84,18.64964886]
[1743009791906,82.0,138.88,138.87,23.72211478]
[1743009792117,82.0,138.9,138.88,18.64964886]
[1743009792429,6.36,138.91,138.89,23.72211478]
[1743009792715,0.063,138.93,138.9,42.37176364]
[1743009792928,0.063,138.93,138.92,42.37176364]
[1743009794728,0.063,138.93,138.91,23.72211478]
[1743009794899,0.063,138.93,138.9,23.72211478]
[1743009795600,0.063,138.93,138.91,23.72211478]
[1743009796015,0.063,138.93,138.9,23.72211478]
[1743009796592,0.063,138.93,138.89,23.72211478]
[1743009796931,82.0,138.92,138.89,23.72211478]
[1743009797911,82.0,138.92,138.89,18.64964886]
[1743009798111,30.16511478,138.93,138.86,42.37176364]
[1743009798112,105.72211478,138.91,138.86,42.37176364]
[1743009798331,105.72211478,138.91,138.85,6.0374]
[1743009798332,105.72211478,138.9,138.85,23.72211478]
[1743009798902,82.0,138.9,138.85,37.8209513]
[1743009799209,82.0,138.9,138.87,37.8209513]
[1743009799806,82.0,138.89,138.82,18.64964886]
[1743009800003,88.38,138.88,138.85,37.8209513]
[1743009800208,88.38,138.88,138.82,18.64964886]
[1743009800209,88.38,138.88,138.87,56.47060016]
[1743009800823,88.38,138.88,138.87,18.64964886]
[1743009801291,88.38,138.88,138.87,56.47060016]
[1743009802107,88.38,138.88,138.87,18.64964886]
[1743009802907,88.38,138.88,138.87,56.47060016]
[1743009803301,6.38,138.88,138.87,56.47060016]
[1743009803607,6.38,138.88,138.87,18.64964886]
[1743009803998,6.38,138.88,138.86,18.64964886]
[1743009804898,119.8209513,138.87,138.82,56.47060016]
[1743009805107,119.8209513,138.86,138.81,37.8209513]
[1743009805309,37.8209513,138.84,138.79,37.8209513]
[1743009805607,82.0,138.83,138.8,37.8209513]
[1743009805807,88.4,138.83,138.8,37.8209513]
[1743009807102,88.4,138.83,138.79,56.47060016]
[1743009807515,126.2209513,138.83,138.79,56.47060016]
[1743009807719,37.8209513,138.82,138.78,18.64964886]
[1743009808620,119.8209513,138.81,138.77,18.64964886]
[1743009808826,82.0,138.8,138.77,18.64964886]
[1743009809504,82.0,138.8,138.77,37.8209513]
[1743009809806,82.0,138.8,138.74,1.5094]
[1743009810011,82.0,138.79,138.75,18.64964886]
[1743009810323,82.0,138.79,138.75,56.47060016]
[1743009811742,82.0,138.79,138.76,37.8209513]
[1743009813128,82.0,138.79,138.74,37.8209513]
[1743009813129,119.8209513,138.79,138.74,37.8209513]
[1743009813334,6.38,138.78,138.74,37.8209513]
[1743009813646,6.38,138.78,138.73,18.64964886]
[1743009813647,44.2009513,138.78,138.73,56.47060016]
[1743009814443,82.0,138.77,138.73,56.47060016]
[1743009814642,82.0,138.76,138.73,56.47060016]
[1743009814844,119.8209513,138.76,138.73,18.64964886]
[1743009815039,119.8209513,138.75,138.7,37.8209513]
[1743009815343,82.0,138.74,138.71,56.47060016]
[1743009816418,6.38,138.73,138.7,37.8209513]
[1743009816627,6.38,138.73,138.7,18.64964886]
[1743009816827,44.2009513,138.73,138.69,18.64964886]
[1743009817229,82.0,138.72,138.68,37.8209513]
[1743009818024,119.8209513,138.72,138.67,37.8209513]
[1743009818621,82.0,138.72,138.68,37.8209513]
[1743009819124,105.69814065,138.72,138.67,23.69814065]
[1743009819645,82.0,138.72,138.68,23.69814065]
[1743009820528,82.0,138.72,138.69,23.69814065]
[1743009820728,82.0,138.74,138.71,23.69814065]
[1743009820942,82.0,138.74,138.73,42.34778951]
[1743009821230,82.0,138.77,138.74,18.64964886]
[1743009821430,82.0,138.77,138.75,23.69814065]
[1743009821657,82.0,138.77,138.73,18.64964886]
[1743009821891,82.0,138.77,138.74,23.69814065]
[1743009822046,82.0,138.77,138.75,23.69814065]
[1743009822930,82.0,138.77,138.76,23.69814065]
[1743009823130,82.0,138.77,138.76,42.34778951]
[1743009826151,82.0,138.81,138.76,42.34778951]
[1743009826363,88.38,138.81,138.79,23.69814065]
[1743009826556,88.38,138.81,138.78,23.69814065]
[1743009826870,88.38,138.81,138.77,18.64964886]
[1743009826871,112.07814065,138.81,138.77,18.64964886]
[1743009829954,112.07814065,138.81,138.77,23.69814065]
[1743009830168,88.38,138.81,138.78,18.64964886]
[1743009830533,88.38,138.81,138.79,23.69814065]
[1743009831146,88.38,138.81,138.78,23.69814065]
[1743009831345,82.0,138.81,138.78,23.69814065]
[1743009833560,82.0,138.81,138.77,18.67964886]
[1743009833860,82.0,138.81,138.78,23.69814065]
[1743009835060,82.0,138.81,138.77,42.37778951]
[1743009836462,23.69814065,138.8,138.77,18.67964886]
[1743009836647,105.69814065,138.81,138.77,18.67964886]
[1743009838350,82.0,138.81,138.78,23.69814065]
[1743009840964,82.0,138.81,138.79,23.69814065]
[1743009841464,82.0,138.81,138.78,23.69814065]
[1743009842061,82.0,138.81,138.79,23.69814065]
[1743009842575,6.34,138.82,138.8,23.69814065]
[1743009842870,82.0,138.84,138.81,42.34778951]
[1743009843069,82.0,138.84,138.82,23.69814065]
[1743009843649,82.0,138.84,138.81,42.34778951]
[1743009846567,82.0,138.84,138.82,23.69814065]
[1743009847564,82.0,138.87,138.84,18.64964886]
[1743009847769,88.34,138.87,138.84,42.34778951]
[1743009848767,88.34,138.87,138.78,57.9684803]
[1743009848768,82.0,138.87,138.85,23.69814065]
[1743009848969,82.0,138.87,138.81,23.69814065]
[1743009848970,82.0,138.87,138.84,42.34778951]
[1743009849657,82.0,138.87,138.86,23.69814065]
[1743009849967,6.34,138.89,138.86,23.69814065]
[1743009850167,6.34,138.89,138.87,23.69814065]
[1743009850364,82.0,138.9,138.87,23.69814065]
[1743009850943,88.34,138.9,138.87,23.69814065]
[1743009851343,88.34,138.9,138.87,18.64964886]
[1743009852857,88.34,138.9,138.87,42.34778951]
[1743009854266,82.0,138.9,138.87,42.34778951]
[1743009855270,82.0,138.9,138.87,18.64964886]
[1743009855458,6.32,138.91,138.89,18.64964886]
[1743009855765,6.32,138.91,138.87,23.69814065]
[1743009855966,30.01814065,138.91,138.86,42.34778951]
[1743009856149,23.69814065,138.9,138.85,23.69814065]
[1743009856471,23.69814065,138.89,138.87,0.03]
[1743009856671,23.69814065,138.88,138.87,0.03]
[1743009858668,23.69814065,138.89,138.87,0.03]
[1743009859646,23.69814065,138.88,138.87,0.03]
[1743009862077,32.51324065,138.88,138.87,0.03]
[1743009862262,25.31284065,138.88,138.87,0.03]
[1743009862667,25.45500222,138.88,138.87,0.03]
[1743009863052,32.65540222,138.88,138.87,0.03]
[1743009864779,25.45500222,138.88,138.87,0.03]
[1743009865671,32.65540222,138.88,138.87,0.03]
[1743009866563,25.45500222,138.88,138.87,0.03]
[1743009869285,32.65540222,138.88,138.87,0.03]
[1743009869789,25.45500222,138.88,138.87,0.03]
[1743009870797,43.84030222,138.88,138.87,0.03]
[1743009870997,23.69814065,138.89,138.87,0.03]
[1743009872061,6.32,138.88,138.87,0.03]
[1743009872481,23.69814065,138.9,138.87,0.03]
[1743009872672,6.32,138.89,138.87,0.03]
[1743009873080,6.32,138.88,138.87,0.03]
[1743009873673,6.32,138.9,138.87,23.72814065]
[1743009873872,6.32,138.9,138.88,23.69814065]
[1743009874268,82.063,138.93,138.89,23.69814065]
[1743009874690,82.063,138.93,138.91,23.69814065]
[1743009874874,6.32,138.92,138.91,18.64964886]
[1743009875075,6.32,138.92,138.91,42.34778951]
[1743009875789,0.063,138.93,138.91,42.34778951]
[1743009876292,0.063,138.93,138.92,42.34778951]
[1743009877274,0.063,138.93,138.92,18.64964886]
[1743009879892,0.063,138.93,138.89,23.69814065]
[1743009880191,23.69814065,138.91,138.87,18.67964886]
[1743009880392,6.32,138.9,138.87,18.67964886]
[1743009880583,6.32,138.9,138.87,23.72814065]
[1743009881793,6.32,138.9,138.88,18.64964886]
[1743009882312,30.01814065,138.9,138.87,0.03]
[1743009883198,23.69814065,138.88,138.87,0.03]
[1743009886710,82.0,138.89,138.87,0.03]
[1743009887085,105.69814065,138.89,138.87,0.03]
[1743009888111,23.69814065,138.88,138.87,0.03]
[1743009888625,23.84030222,138.88,138.87,0.03]
[1743009888988,23.69814065,138.88,138.87,0.03]
[1743009889614,0.14216157,138.89,138.87,0.03]
[1743009889815,23.69814065,138.88,138.87,0.03]
[1743009895912,54.80184287,138.88,138.87,0.03]
[1743009896095,82.55904287,138.88,138.87,0.03]
[1743009896490,53.67864287,138.88,138.87,0.03]
[1743009896699,29.98050222,138.88,138.87,0.03]
[1743009897098,23.90330222,138.88,138.87,0.03]
[1743009898402,6.383,138.88,138.87,0.03]
[1743009898810,30.22330222,138.88,138.87,0.03]
[1743009898996,61.12184287,138.88,138.87,0.03]
[1743009899408,53.92144287,138.88,138.87,0.03]
[1743009900214,61.12184287,138.88,138.87,0.03]
[1743009901093,30.22330222,138.88,138.87,0.03]
[1743009907228,61.12184287,138.88,138.87,0.03]
[1743009908117,0.14216157,138.87,138.79,1.6506]
[1743009908298,23.69814065,138.82,138.79,1.6506]
[1743009908501,6.32,138.81,138.79,1.6506]
[1743009909404,30.01814065,138.81,138.76,42.34778951]
[1743009910410,30.01814065,138.81,138.77,23.69814065]
[1743009911608,105.69814065,138.8,138.75,7.8017]
[1743009911946,105.69814065,138.8,138.75,31.49984065]
[1743009912097,82.0,138.8,138.77,23.69814065]
[1743009912720,82.0,138.8,138.79,23.69814065]
[1743009912928,6.32,138.81,138.79,23.69814065]
[1743009914207,82.0,138.83,138.79,23.69814065]
[1743009914426,88.32,138.82,138.79,23.69814065]
[1743009914803,23.84030222,138.81,138.76,23.69814065]
[1743009915129,15.1486214,138.79,138.75,22.9503214]
[1743009915709,103.4686214,138.8,138.75,22.9503214]
[1743009916118,15.1486214,138.79,138.75,1.5185]
[1743009916318,82.0,138.78,138.75,1.5185]
[1743009916828,82.0,138.78,138.75,16.6671214]
[1743009917023,82.0,138.78,138.75,1.5185]
[1743009917217,82.0,138.77,138.73,23.67386766]
[1743009917420,82.0,138.77,138.72,25.26816766]
[1743009917421,105.67386766,138.77,138.72,25.26816766]
[1743009918008,82.0,138.77,138.73,23.67386766]
[1743009918326,105.67386766,138.77,138.72,25.26816766]
[1743009919108,23.67386766,138.76,138.72,1.5943]
[1743009919329,23.67386766,138.74,138.68,8.1473]
[1743009919509,82.0,138.73,138.69,23.67386766]
[1743009920021,105.67386766,138.73,138.69,23.67386766]
[1743009920225,105.67386766,138.72,138.68,1.5986]
[1743009920427,105.67386766,138.71,138.66,23.67386766]
[1743009920611,88.34,138.7,138.66,23.67386766]
[1743009921517,112.01386766,138.7,138.69,0.03]
[1743009921711,30.01386766,138.7,138.69,0.03]
[1743009922120,6.34,138.7,138.69,0.03]
[1743009923007,6.34,138.7,138.66,23.67386766]
[1743009923205,82.0,138.69,138.65,25.26866766]
[1743009923446,105.67386766,138.69,138.64,23.67386766]
[1743009923615,23.67386766,138.68,138.64,23.67386766]
[1743009924133,23.67386766,138.68,138.62,20.25834886]
[1743009924339,82.0,138.67,138.63,23.67386766]
[1743009924713,105.67386766,138.67,138.62,25.28256766]
[1743009924926,105.67386766,138.67,138.62,23.67386766]
[1743009925128,82.0,138.66,138.62,23.67386766]
[1743009925330,6.34,138.65,138.61,23.67386766]
[1743009925630,88.34,138.65,138.59,18.64964886]
[1743009925821,112.01386766,138.65,138.6,23.67386766]
[1743009926218,105.67386766,138.64,138.59,23.67386766]
[1743009926639,82.0,138.63,138.59,23.67386766]
[1743009926836,105.67386766,138.63,138.58,25.28256766]
[1743009927035,23.67386766,138.61,138.53,23.67386766]
[1743009927220,88.34,138.6,138.57,23.67386766]
[1743009927413,88.34,138.6,138.59,23.67386766]
[1743009928119,82.0,138.63,138.59,42.32351652]
[1743009928320,82.0,138.63,138.61,23.67386766]
[1743009929339,82.0,138.63,138.6,23.67386766]
[1743009930929,82.0,138.63,138.59,23.67386766]
[1743009932144,82.0,138.63,138.6,23.67386766]
[1743009932350,82.0,138.63,138.59,23.67386766]
[1743009933345,82.0,138.63,138.6,23.67386766]
[1743009933738,82.0,138.63,138.59,23.67386766]
[1743009933936,82.0,138.63,138.58,23.67386766]
[1743009933937,105.67386766,138.63,138.58,23.67386766]
[1743009934122,23.67386766,138.61,138.57,23.67386766]
[1743009934325,23.67386766,138.61,138.56,23.67386766]
[1743009934538,82.0,138.6,138.56,23.67386766]
[1743009934737,6.34,138.59,138.57,23.67386766]
[1743009935135,6.34,138.59,138.57,23.17386766]
[1743009935448,6.34,138.59,138.56,23.67386766]
[1743009937346,6.34,138.59,138.54,7.7334]
[1743009937648,6.34,138.59,138.57,23.67386766]
[1743009938927,6.34,138.59,138.56,23.67386766]
[1743009939127,6.34,138.59,138.57,23.67386766]
[1743009939938,6.34,138.59,138.56,23.67386766]
[1743009940329,6.34,138.59,138.54,1.5417]
[1743009940532,82.0,138.58,138.52,1.5719]
[1743009940868,82.0,138.57,138.54,23.67386766]
[1743009941065,105.67386766,138.57,138.52,25.24576766]
[1743009941366,23.67386766,138.53,138.51,2.4306403]
[1743009941844,30.37386766,138.54,138.51,2.4306403]
[1743009942027,6.7,138.54,138.51,2.4306403]
[1743009942749,6.7,138.54,138.52,23.67386766]
[1743009942931,30.77386766,138.56,138.52,23.67386766]
[1743009943133,82.0,138.55,138.52,23.67386766]
[1743009944755,7.1,138.56,138.54,23.67386766]
[1743009947040,105.67386766,138.59,138.55,23.67386766]
[1743009947245,82.0,138.58,138.54,23.67386766]
[1743009947554,82.0,138.61,138.57,23.67386766]
[1743009947735,82.0,138.61,138.58,23.67386766]
[1743009948333,7.2,138.64,138.6,23.67386766]
[1743009948870,30.87386766,138.64,138.59,23.67386766]
[1743009949364,23.67386766,138.63,138.58,23.67386766]
[1743009949537,23.67386766,138.62,138.57,23.67386766]
[1743009949738,105.67386766,138.63,138.55,26.86044886]
[1743009949938,23.67386766,138.62,138.57,23.67386766]
[1743009950248,105.67386766,138.63,138.58,23.67386766]
[1743009950445,105.67386766,138.63,138.59,23.67386766]
[1743009950650,105.67386766,138.63,138.58,23.67386766]
[1743009950851,82.0,138.63,138.59,23.67386766]
[1743009951052,82.0,138.63,138.6,23.67386766]
[1743009951451,82.0,138.63,138.59,23.67386766]
[1743009951859,82.0,138.63,138.6,23.67386766]
[1743009957268,7.2,138.64,138.55,81.11399669]
[1743009957269,82.0,138.66,138.62,23.67386766]
[1743009957453,82.0,138.66,138.65,23.67386766]
[1743009957652,89.24,138.69,138.65,23.67386766]
[1743009957847,89.24,138.69,138.66,23.67386766]
[1743009959067,112.91386766,138.69,138.64,23.67386766]
[1743009959474,23.67386766,138.68,138.64,23.67386766]
[1743009959672,23.67386766,138.67,138.61,1.5296]
[1743009959849,23.67386766,138.67,138.62,23.67386766]
[1743009961156,23.67386766,138.64,138.6,23.67386766]
[1743009961361,23.67386766,138.64,138.58,88.982]
[1743009961362,30.87386766,138.64,138.58,6.382]
[1743009961567,7.2,138.64,138.6,23.67386766]
[1743009962471,7.2,138.64,138.61,23.67386766]
[1743009963071,7.2,138.64,138.62,23.67386766]
[1743009963376,7.2,138.64,138.63,23.67386766]
[1743009964079,89.2,138.67,138.63,23.67386766]
[1743009964373,89.2,138.67,138.64,23.67386766]
[1743009964557,89.2,138.67,138.63,23.67386766]
[1743009965272,112.87386766,138.67,138.6,18.64964886]
[1743009965476,112.87386766,138.67,138.62,23.67386766]
[1743009966078,89.2,138.67,138.63,23.67386766]
[1743009968070,89.2,138.67,138.64,23.67386766]
[1743009968376,89.2,138.67,138.63,23.67386766]
[1743009968573,89.2,138.67,138.6,42.32351652]
[1743009968574,23.67386766,138.65,138.6,23.67386766]
[1743009968766,105.67386766,138.66,138.61,23.67386766]
[1743009969274,82.0,138.66,138.64,23.67386766]
[1743009969857,82.0,138.66,138.63,23.67386766]
[1743009970259,105.67386766,138.66,138.61,23.67386766]
[1743009970465,105.67386766,138.65,138.58,25.03164886]
[1743009970755,82.0,138.65,138.61,23.67386766]
[1743009970969,82.0,138.65,138.58,25.03164886]
[1743009970970,82.0,138.65,138.62,23.67386766]
[1743009971279,82.0,138.65,138.64,23.67386766]
[1743009971477,7.2,138.67,138.64,23.67386766]
[1743009972679,7.2,138.67,138.63,23.67386766]
[1743009973782,7.2,138.67,138.64,23.67386766]
[1743009974077,89.223,138.68,138.65,23.67386766]
[1743009974660,82.063,138.68,138.65,23.67386766]
[1743009974876,0.063,138.68,138.67,23.67386766]
[1743009975487,0.063,138.68,138.63,1.622]
[1743009975780,0.063,138.68,138.65,23.67386766]
[1743009976169,0.063,138.68,138.66,23.67386766]
[1743009976569,0.063,138.68,138.65,23.67386766]
[1743009976974,105.67386766,138.67,138.62,23.67386766]
[1743009977380,105.67386766,138.67,138.59,20.30454886]
[1743009977381,82.0,138.67,138.64,23.67386766]
[1743009977778,82.0,138.67,138.63,23.67386766]
[1743009977982,82.0,138.67,138.64,23.67386766]
[1743009979587,82.0,138.67,138.63,23.67386766]
[1743009979986,82.0,138.67,138.64,23.67386766]
[1743009980487,82.0,138.67,138.63,23.67386766]
[1743009980866,82.0,138.67,138.64,23.67386766]
[1743009981771,0.063,138.68,138.66,23.67386766]
[1743009982487,82.0,138.73,138.67,23.67386766]
[1743009982689,7.12,138.72,138.7,23.67386766]
[1743009983194,82.0,138.73,138.71,23.67386766]
[1743009983487,7.14,138.74,138.72,23.67386766]
[1743009983786,7.14,138.74,138.71,23.67386766]
[1743009983993,30.81386766,138.75,138.71,23.67386766]
[1743009984187,7.14,138.75,138.68,18.64964886]
[1743009984395,7.14,138.75,138.71,23.67386766]
[1743009984891,23.67386766,138.74,138.69,23.67386766]
[1743009985086,23.67386766,138.73,138.68,23.67386766]
[1743009985678,105.73686766,138.74,138.69,23.67386766]
[1743009986195,82.063,138.74,138.7,23.67386766]
[1743009986590,82.063,138.74,138.71,23.67386766]
[1743009987305,82.063,138.74,138.67,42.32351652]
[1743009987472,82.063,138.74,138.71,23.67386766]
[1743009988674,82.063,138.74,138.7,23.67386766]
[1743009988989,82.063,138.74,138.71,23.67386766]
[1743009990500,82.063,138.74,138.67,42.32351652]
[1743009990501,82.063,138.74,138.68,18.64964886]
[1743009990682,82.063,138.74,138.72,23.67386766]
[1743009990882,0.063,138.74,138.72,23.67386766]
[1743009993098,7.08,138.72,138.69,23.67386766]
[1743009997301,7.08,138.72,138.66,18.64964886]
[1743009997510,89.08,138.72,138.68,23.67386766]
[1743009998476,89.08,138.72,138.69,23.67386766]
[1743010003114,89.08,138.72,138.71,23.67386766]
[1743010003705,82.0,138.72,138.71,23.67386766]
[1743010004905,0.063,138.74,138.71,15.15837909]
[1743010005107,0.063,138.74,138.72,15.15837909]
[1743010006501,0.063,138.74,138.67,79.28316522]
[1743010006502,0.063,138.74,138.73,15.15837909]
[1743010007612,0.063,138.74,138.72,15.15837909]
[1743010008295,0.063,138.74,138.68,18.64964886]
[1743010008296,0.063,138.74,138.73,15.15837909]
[1743010013518,0.063,138.74,138.72,15.15837909]
[1743010013706,0.063,138.74,138.73,15.15837909]
[1743010015216,0.063,138.74,138.69,0.14216157]
[1743010015422,0.063,138.74,138.72,15.15837909]
[1743010015626,0.063,138.74,138.73,15.15837909]
[1743010018198,0.063,138.74,138.73,33.95018952]
[1743010018399,0.063,138.74,138.73,94.58370588]
[1743010019002,0.063,138.74,138.73,33.95018952]
[1743010019618,0.063,138.74,138.73,116.69235109]
[1743010019820,0.063,138.74,138.73,177.32586745]
[1743010020514,0.063,138.74,138.73,181.01584567]
[1743010021622,0.063,138.74,138.73,177.32586745]
[1743010022818,0.063,138.74,138.73,116.69235109]
[1743010024725,0.063,138.74,138.73,177.32586745]
[1743010025300,0.063,138.74,138.73,116.69235109]
[1743010025924,0.063,138.74,138.73,177.32586745]
[1743010026506,88.9,138.81,138.74,18.79181043]
[1743010026720,88.9,138.81,138.78,15.15837909]
[1743010027331,88.9,138.81,138.77,15.15837909]
[1743010027522,104.05837909,138.81,138.77,15.15837909]
[1743010027707,88.9,138.81,138.77,15.15837909]
[1743010028221,82.0,138.81,138.77,15.15837909]
[1743010028429,88.88,138.81,138.77,15.15837909]
[1743010030242,88.88,138.81,138.74,79.42532679]
[1743010030401,88.88,138.81,138.77,15.15837909]
[1743010031109,15.15837909,138.8,138.76,15.15837909]
[1743010031314,88.88,138.81,138.77,15.15837909]
[1743010031315,104.03837909,138.81,138.77,15.15837909]
[1743010032633,15.15837909,138.79,138.75,15.15837909]
[1743010032800,15.15837909,138.76,138.7,0.14216157]
[1743010033125,22.01837909,138.76,138.71,15.15837909]
[1743010033636,15.15837909,138.74,138.7,15.15837909]
[1743010033800,15.15837909,138.74,138.7,18.64964886]
[1743010034317,15.15837909,138.72,138.68,0.03]
[1743010034736,35.30054066,138.69,138.68,0.03]
[1743010036431,42.65300223,138.69,138.68,0.03]
[1743010037011,44.0100795,138.69,138.68,0.03]
[1743010037208,43.86791793,138.69,138.68,0.03]
[1743010037614,44.0100795,138.69,138.68,0.03]
[1743010038526,20.28432314,138.69,138.68,0.03]
[1743010038733,44.0100795,138.69,138.68,0.03]
[1743010039046,43.86791793,138.69,138.68,0.03]
[1743010042233,51.07821793,138.69,138.68,0.03]
[1743010042437,93.59578472,138.69,138.68,0.03]
[1743010042915,69.87002836,138.69,138.68,0.03]
[1743010043115,44.0100795,138.69,138.68,0.03]
[1743010043837,51.2203795,138.69,138.68,0.03]
[1743010044024,69.87002836,138.69,138.68,0.03]
[1743010044223,93.59578472,138.69,138.68,0.03]
[1743010044912,0.14216157,138.66,138.59,23.72575636]
[1743010045109,23.72575636,138.64,138.59,23.72575636]
[1743010045936,112.55575636,138.65,138.6,23.72575636]
[1743010047810,112.55575636,138.65,138.6,23.75575636]
[1743010048338,88.83,138.65,138.62,23.72575636]
[1743010048519,88.81,138.65,138.62,23.72575636]
[1743010048720,112.53575636,138.65,138.6,23.75575636]
[1743010048921,23.72575636,138.64,138.6,0.03]
[1743010050137,23.72575636,138.62,138.6,0.03]
[1743010050938,81.97,138.64,138.6,23.75575636]
[1743010051326,81.97,138.64,138.62,23.72575636]
[1743010051527,81.97,138.66,138.63,23.72575636]
[1743010051725,81.97,138.66,138.64,23.72575636]
[1743010051936,81.97,138.68,138.64,23.72575636]
[1743010052123,81.97,138.68,138.66,23.72575636]
[1743010052535,81.97,138.68,138.67,23.72575636]
[1743010052757,6.86,138.71,138.67,23.72575636]
[1743010052955,88.83,138.71,138.67,23.72575636]
[1743010053922,88.83,138.71,138.69,23.72575636]
[1743010054118,23.72575636,138.75,138.7,23.72575636]
[1743010054343,88.81,138.74,138.71,23.72575636]
[1743010056828,88.81,138.74,138.7,23.72575636]
[1743010057032,112.53575636,138.74,138.69,42.37540522]
[1743010058324,88.81,138.74,138.7,23.72575636]
[1743010058748,112.53575636,138.74,138.69,42.37540522]
[1743010059054,23.72575636,138.72,138.68,23.72575636]
[1743010059223,23.72575636,138.73,138.68,23.72575636]
[1743010059844,23.72575636,138.72,138.67,42.37540522]
[1743010060050,23.72575636,138.7,138.65,23.72575636]
[1743010060238,81.97,138.69,138.65,23.72575636]
[1743010060436,88.77,138.69,138.65,23.72575636]
[1743010060751,88.77,138.69,138.68,23.72575636]
[1743010060921,6.8,138.69,138.68,23.72575636]
[1743010061126,6.8,138.69,138.67,23.72575636]
[1743010062028,6.8,138.69,138.68,23.72575636]
[1743010062436,6.8,138.69,138.68,42.37540522]
[1743010062637,88.77,138.73,138.68,42.37540522]
[1743010062953,88.77,138.73,138.69,23.72575636]
[1743010064956,88.77,138.73,138.7,23.72575636]
[1743010065134,88.77,138.73,138.71,23.72575636]
[1743010066147,88.77,138.73,138.7,23.72575636]
[1743010066554,112.49575636,138.73,138.68,42.37540522]
[1743010067951,23.72575636,138.71,138.66,23.72575636]
[1743010068654,105.69575636,138.72,138.67,23.72575636]
[1743010069653,105.69575636,138.72,138.66,18.64964886]